{"text_format":"1","workbook":"xlsx","n_sheets":7,"sheets":["Cadastros","Base Acidentes","Base DDS","Dash.Acidentes","Dash DDS","Instruções","Apoio"],"not_rendered":{"charts":9,"images":30,"macros":1,"external_links":0,"defined_names":12,"comments":0,"pivot_tables":9},"unopened":[],"bounds":{"document_bytes":16777216,"sheet_cells":100000,"rows_first":2000,"rows_last":500,"rows_between":2000,"halvings":0,"cell_chars":16384,"cell_head_chars":4096},"cells_cut":0,"cells_raw":0,"read":"row_number_cap","date_system":"1900"}

{"sheet":"Cadastros","index":0,"n_rows":56,"n_cols":10,"rows_kept":56,"cut":false,"hidden":false,"merged":[[3,3,3,7]]}
[]
[]
[]
[null,"Cadastro de base Geral",null,"Cadastro da base de acidentes",null,null,null,null,null,"Cadastro de base DDS"]
[null,"Setor",null,"Agente da lesão",null,"Caracterização de Acidentes",null,"Partes do corpo",null,"Método"]
[null,"Operacional",null,"Acidente de carro",null,"Incapacitante",null,"Crânio",null,"Book DDs"]
[null,"Adminstrativo",null,"Acidente de moto",null,"Não incapacitante",null,"Face",null,"Vídeo"]
[null,"Financeiro",null,"Choque",null,"Com restrição",null,"Olhos",null,"Palestra"]
[null,"Comercial",null,"Manipulação de ferramentas",null,"Sem restrição",null,"Pescoço",null,"Power Point"]
[null,"Usinagem",null,"Queda de escada",null,"Com danos materiais",null,"Ombro"]
[null,"Caldeiraria",null,"Queda de telhado",null,"Sem danos materiais",null,"Braço"]
[null,"Solda",null,null,null,"Fatal",null,"Cotovelo"]
[null,"Pintura",null,null,null,null,null,"Punho"]
[null,"Montagem",null,null,null,null,null,"Mão"]
[null,null,null,null,null,null,null,"Dedos mão"]
[null,null,null,null,null,null,null,"Abdômen"]
[null,null,null,null,null,null,null,"Reg. Lombar"]
[null,null,null,null,null,null,null,"Perna"]
[null,null,null,null,null,null,null,"Pé"]
[null,null,null,null,null,null,null,"Dedos Pé"]
[null,null,null,null,null,null,null,"Orgãos internos"]
[null,null,null,null,null,null,null,"Joelho"]
[]
[]
[]
[null,"Limite de cadastro",null,"Limite de cadastro",null,"Limite de cadastro",null,null,null,"Limite de cadastro"]
[]
[]
[]
[]
[]
[]
[]
[]
[]
[]
[]
[]
[]
[]
[]
[]
[]
[]
[]
[]
[]
[]
[]
[]
[]
[]
[]
[]
[]
[null,null,null,null,null,null,null,"Limite de cadastro"]

{"sheet":"Base Acidentes","index":1,"n_rows":23,"n_cols":24,"rows_kept":23,"cut":false,"hidden":false,"merged":[]}
[]
[]
[null,null,null,null,null,null,null,null,null,null,null,null,null,null,null,null,null,null,null,null,null,null,null,{"$error":"#N/A"}]
[]
[]
[null,"Data","Nº de Registro do funcionário","Nome do Funcionário","Setor","Função","Sexo","Turno","Tipo de acidente","Agente de lesão","Caracterização do acidente","Parte do corpo atingida","Dias de afastamento","Valor gerado","Mês","Ano"]
[null,44927,1015,"Nome do funcionário 1","Operacional","Função","Masculino","Tarde","Acidente Típico","Acidente de carro","Incapacitante","Face",20,500,{"$f":"IF(TbBaseAcidentes[[#This Row],[Data]]=\"\",\"\",PROPER(TEXT(TbBaseAcidentes[[#This Row],[Data]],\"mmm\")))","v":"Jan"},{"$f":"IF(TbBaseAcidentes[[#This Row],[Data]]=\"\",\"\",YEAR(TbBaseAcidentes[[#This Row],[Data]]))","v":2023}]
[null,44958,2015,"Nome do funcionário 2","Adminstrativo","Função","Feminino","Noite","Acidente de trajeto","Acidente de moto","Não incapacitante","Dedos Pé",5,20,{"$f":"IF(TbBaseAcidentes[[#This Row],[Data]]=\"\",\"\",PROPER(TEXT(TbBaseAcidentes[[#This Row],[Data]],\"mmm\")))","v":"Fev"},{"$f":"IF(TbBaseAcidentes[[#This Row],[Data]]=\"\",\"\",YEAR(TbBaseAcidentes[[#This Row],[Data]]))","v":2023}]
[null,44986,2023,"Nome do funcionário 3","Financeiro","Função","Masculino","Manhã","Acidente Típico","Choque","Fatal","Orgãos internos",20,300,{"$f":"IF(TbBaseAcidentes[[#This Row],[Data]]=\"\",\"\",PROPER(TEXT(TbBaseAcidentes[[#This Row],[Data]],\"mmm\")))","v":"Mar"},{"$f":"IF(TbBaseAcidentes[[#This Row],[Data]]=\"\",\"\",YEAR(TbBaseAcidentes[[#This Row],[Data]]))","v":2023}]
[null,45108,1050,"Nome do funcionário 4","Comercial","Função","Masculino","Noite","Doença Ocupacional","Choque","Com danos materiais","Pé",2,100,{"$f":"IF(TbBaseAcidentes[[#This Row],[Data]]=\"\",\"\",PROPER(TEXT(TbBaseAcidentes[[#This Row],[Data]],\"mmm\")))","v":"Jul"},{"$f":"IF(TbBaseAcidentes[[#This Row],[Data]]=\"\",\"\",YEAR(TbBaseAcidentes[[#This Row],[Data]]))","v":2023}]
[null,45048,1030,"Nome do funcionário 5","Caldeiraria","Função","Masculino","Noite","Acidente Típico","Manipulação de ferramentas","Sem danos materiais","Perna",30,50,{"$f":"IF(TbBaseAcidentes[[#This Row],[Data]]=\"\",\"\",PROPER(TEXT(TbBaseAcidentes[[#This Row],[Data]],\"mmm\")))","v":"Mai"},{"$f":"IF(TbBaseAcidentes[[#This Row],[Data]]=\"\",\"\",YEAR(TbBaseAcidentes[[#This Row],[Data]]))","v":2023}]
[null,45017,1066,"Nome do funcionário 6","Usinagem","Função","Masculino","Noite","Acidente Típico","Queda de telhado","Com danos materiais","Abdômen",20,30,{"$f":"IF(TbBaseAcidentes[[#This Row],[Data]]=\"\",\"\",PROPER(TEXT(TbBaseAcidentes[[#This Row],[Data]],\"mmm\")))","v":"Abr"},{"$f":"IF(TbBaseAcidentes[[#This Row],[Data]]=\"\",\"\",YEAR(TbBaseAcidentes[[#This Row],[Data]]))","v":2023}]
[null,45078,1050,"Nome do funcionário 7","Caldeiraria","Função","Masculino","Noite","Doença Ocupacional","Queda de escada","Com danos materiais","Ombro",3,65,{"$f":"IF(TbBaseAcidentes[[#This Row],[Data]]=\"\",\"\",PROPER(TEXT(TbBaseAcidentes[[#This Row],[Data]],\"mmm\")))","v":"Jun"},{"$f":"IF(TbBaseAcidentes[[#This Row],[Data]]=\"\",\"\",YEAR(TbBaseAcidentes[[#This Row],[Data]]))","v":2023}]
[null,45139,1022,"Nome do funcionário 8","Caldeiraria","Função","Feminino","Noite","Acidente Típico","Queda de telhado","Fatal","Braço",3,80,{"$f":"IF(TbBaseAcidentes[[#This Row],[Data]]=\"\",\"\",PROPER(TEXT(TbBaseAcidentes[[#This Row],[Data]],\"mmm\")))","v":"Ago"},{"$f":"IF(TbBaseAcidentes[[#This Row],[Data]]=\"\",\"\",YEAR(TbBaseAcidentes[[#This Row],[Data]]))","v":2023}]
[null,45170,509,"Nome do funcionário 9","Pintura","Função","Feminino","Tarde","Acidente de trajeto","Acidente de moto","Com restrição","Joelho",5,30,{"$f":"IF(TbBaseAcidentes[[#This Row],[Data]]=\"\",\"\",PROPER(TEXT(TbBaseAcidentes[[#This Row],[Data]],\"mmm\")))","v":"Set"},{"$f":"IF(TbBaseAcidentes[[#This Row],[Data]]=\"\",\"\",YEAR(TbBaseAcidentes[[#This Row],[Data]]))","v":2023}]
[null,45200,1000,"Nome do funcionário 10","Pintura","Função","Feminino","Tarde","Doença Ocupacional","Acidente de moto","Sem restrição","Joelho",5,20,{"$f":"IF(TbBaseAcidentes[[#This Row],[Data]]=\"\",\"\",PROPER(TEXT(TbBaseAcidentes[[#This Row],[Data]],\"mmm\")))","v":"Out"},{"$f":"IF(TbBaseAcidentes[[#This Row],[Data]]=\"\",\"\",YEAR(TbBaseAcidentes[[#This Row],[Data]]))","v":2023}]
[null,45017,1002,"Nome do funcionário 11","Pintura","Função","Masculino","Manhã","Doença Ocupacional","Acidente de carro","Com danos materiais","Joelho",6,50,{"$f":"IF(TbBaseAcidentes[[#This Row],[Data]]=\"\",\"\",PROPER(TEXT(TbBaseAcidentes[[#This Row],[Data]],\"mmm\")))","v":"Abr"},{"$f":"IF(TbBaseAcidentes[[#This Row],[Data]]=\"\",\"\",YEAR(TbBaseAcidentes[[#This Row],[Data]]))","v":2023}]
[null,44986,1500,"Nome do funcionário 12","Pintura","Função","Masculino","Manhã","Doença Ocupacional","Choque","Fatal","Cotovelo",1,40,{"$f":"IF(TbBaseAcidentes[[#This Row],[Data]]=\"\",\"\",PROPER(TEXT(TbBaseAcidentes[[#This Row],[Data]],\"mmm\")))","v":"Mar"},{"$f":"IF(TbBaseAcidentes[[#This Row],[Data]]=\"\",\"\",YEAR(TbBaseAcidentes[[#This Row],[Data]]))","v":2023}]
[null,44958,850,"Nome do funcionário 13","Pintura","Função","Feminino","Noite","Acidente de trajeto","Acidente de carro","Sem danos materiais","Braço",2,45,{"$f":"IF(TbBaseAcidentes[[#This Row],[Data]]=\"\",\"\",PROPER(TEXT(TbBaseAcidentes[[#This Row],[Data]],\"mmm\")))","v":"Fev"},{"$f":"IF(TbBaseAcidentes[[#This Row],[Data]]=\"\",\"\",YEAR(TbBaseAcidentes[[#This Row],[Data]]))","v":2023}]
[null,45047,1200,"Nome do funcionário 14","Montagem","Função","Masculino","Noite","Doença Ocupacional","queda de telhado","Sem danos materiais","Crânio",20,80,{"$f":"IF(TbBaseAcidentes[[#This Row],[Data]]=\"\",\"\",PROPER(TEXT(TbBaseAcidentes[[#This Row],[Data]],\"mmm\")))","v":"Mai"},{"$f":"IF(TbBaseAcidentes[[#This Row],[Data]]=\"\",\"\",YEAR(TbBaseAcidentes[[#This Row],[Data]]))","v":2023}]
[null,45078,1265,"Nome do funcionário 15","Montagem","Função","Masculino","Manhã","Acidente Típico","Choque","Com danos materiais","Pescoço",3,90,{"$f":"IF(TbBaseAcidentes[[#This Row],[Data]]=\"\",\"\",PROPER(TEXT(TbBaseAcidentes[[#This Row],[Data]],\"mmm\")))","v":"Jun"},{"$f":"IF(TbBaseAcidentes[[#This Row],[Data]]=\"\",\"\",YEAR(TbBaseAcidentes[[#This Row],[Data]]))","v":2023}]
[null,45231,1250,"Nome do funcionário 16","Montagem","Função","Masculino","Manhã","Acidente de trajeto","Choque","Com restrição","Crânio",5,100,{"$f":"IF(TbBaseAcidentes[[#This Row],[Data]]=\"\",\"\",PROPER(TEXT(TbBaseAcidentes[[#This Row],[Data]],\"mmm\")))","v":"Nov"},{"$f":"IF(TbBaseAcidentes[[#This Row],[Data]]=\"\",\"\",YEAR(TbBaseAcidentes[[#This Row],[Data]]))","v":2023}]
[null,45261,1600,"Nome do funcionário 17","Montagem","Função","Masculino","Noite","Acidente de trajeto","acidente de carro","Incapacitante","Braço",5,30,{"$f":"IF(TbBaseAcidentes[[#This Row],[Data]]=\"\",\"\",PROPER(TEXT(TbBaseAcidentes[[#This Row],[Data]],\"mmm\")))","v":"Dez"},{"$f":"IF(TbBaseAcidentes[[#This Row],[Data]]=\"\",\"\",YEAR(TbBaseAcidentes[[#This Row],[Data]]))","v":2023}]

{"sheet":"Base DDS","index":2,"n_rows":33,"n_cols":24,"rows_kept":33,"cut":false,"hidden":false,"merged":[]}
[]
[]
[null,null,null,null,null,null,null,null,null,null,null,null,null,null,null,null,null,null,null,null,null,null,null,{"$error":"#N/A"}]
[]
[]
[null,"Data","Tema do DDS","Método utilizado","Qtd total de Colaboradores","Qtd. de participantes","% de Participação","Comentários","Mês","Ano"]
[null,44927,"Tema ","Book DDs",30,30,{"$f":"IF(OR(TbBaseDDS[[#This Row],[Qtd total de Colaboradores]]=\"\",TbBaseDDS[[#This Row],[Qtd. de participantes]]=\"\"),\"\",TbBaseDDS[[#This Row],[Qtd. de participantes]]/TbBaseDDS[[#This Row],[Qtd total de Colaboradores]])","v":1},null,{"$f":"IF(TbBaseDDS[[#This Row],[Data]]=\"\",\"\",PROPER(TEXT(TbBaseDDS[[#This Row],[Data]],\"mmm\")))","v":"Jan"},{"$f":"IF(TbBaseDDS[[#This Row],[Data]]=\"\",\"\",YEAR(TbBaseDDS[[#This Row],[Data]]))","v":2023}]
[null,44958,"Tema ","Vídeo",20,20,{"$f":"IF(OR(TbBaseDDS[[#This Row],[Qtd total de Colaboradores]]=\"\",TbBaseDDS[[#This Row],[Qtd. de participantes]]=\"\"),\"\",TbBaseDDS[[#This Row],[Qtd. de participantes]]/TbBaseDDS[[#This Row],[Qtd total de Colaboradores]])","v":1},null,{"$f":"IF(TbBaseDDS[[#This Row],[Data]]=\"\",\"\",PROPER(TEXT(TbBaseDDS[[#This Row],[Data]],\"mmm\")))","v":"Fev"},{"$f":"IF(TbBaseDDS[[#This Row],[Data]]=\"\",\"\",YEAR(TbBaseDDS[[#This Row],[Data]]))","v":2023}]
[null,44986,"Tema ","Palestra",20,18,{"$f":"IF(OR(TbBaseDDS[[#This Row],[Qtd total de Colaboradores]]=\"\",TbBaseDDS[[#This Row],[Qtd. de participantes]]=\"\"),\"\",TbBaseDDS[[#This Row],[Qtd. de participantes]]/TbBaseDDS[[#This Row],[Qtd total de Colaboradores]])","v":0.9},null,{"$f":"IF(TbBaseDDS[[#This Row],[Data]]=\"\",\"\",PROPER(TEXT(TbBaseDDS[[#This Row],[Data]],\"mmm\")))","v":"Mar"},{"$f":"IF(TbBaseDDS[[#This Row],[Data]]=\"\",\"\",YEAR(TbBaseDDS[[#This Row],[Data]]))","v":2023}]
[null,45017,"Tema ","Power Point",30,25,{"$f":"IF(OR(TbBaseDDS[[#This Row],[Qtd total de Colaboradores]]=\"\",TbBaseDDS[[#This Row],[Qtd. de participantes]]=\"\"),\"\",TbBaseDDS[[#This Row],[Qtd. de participantes]]/TbBaseDDS[[#This Row],[Qtd total de Colaboradores]])","v":0.83333333333333337},null,{"$f":"IF(TbBaseDDS[[#This Row],[Data]]=\"\",\"\",PROPER(TEXT(TbBaseDDS[[#This Row],[Data]],\"mmm\")))","v":"Abr"},{"$f":"IF(TbBaseDDS[[#This Row],[Data]]=\"\",\"\",YEAR(TbBaseDDS[[#This Row],[Data]]))","v":2023}]
[null,44958,"Tema ","Vídeo",30,30,{"$f":"IF(OR(TbBaseDDS[[#This Row],[Qtd total de Colaboradores]]=\"\",TbBaseDDS[[#This Row],[Qtd. de participantes]]=\"\"),\"\",TbBaseDDS[[#This Row],[Qtd. de participantes]]/TbBaseDDS[[#This Row],[Qtd total de Colaboradores]])","v":1},null,{"$f":"IF(TbBaseDDS[[#This Row],[Data]]=\"\",\"\",PROPER(TEXT(TbBaseDDS[[#This Row],[Data]],\"mmm\")))","v":"Fev"},{"$f":"IF(TbBaseDDS[[#This Row],[Data]]=\"\",\"\",YEAR(TbBaseDDS[[#This Row],[Data]]))","v":2023}]
[null,44928,"Tema ","Vídeo",50,40,{"$f":"IF(OR(TbBaseDDS[[#This Row],[Qtd total de Colaboradores]]=\"\",TbBaseDDS[[#This Row],[Qtd. de participantes]]=\"\"),\"\",TbBaseDDS[[#This Row],[Qtd. de participantes]]/TbBaseDDS[[#This Row],[Qtd total de Colaboradores]])","v":0.8},null,{"$f":"IF(TbBaseDDS[[#This Row],[Data]]=\"\",\"\",PROPER(TEXT(TbBaseDDS[[#This Row],[Data]],\"mmm\")))","v":"Jan"},{"$f":"IF(TbBaseDDS[[#This Row],[Data]]=\"\",\"\",YEAR(TbBaseDDS[[#This Row],[Data]]))","v":2023}]
[null,45108,"Tema ","Vídeo",30,30,{"$f":"IF(OR(TbBaseDDS[[#This Row],[Qtd total de Colaboradores]]=\"\",TbBaseDDS[[#This Row],[Qtd. de participantes]]=\"\"),\"\",TbBaseDDS[[#This Row],[Qtd. de participantes]]/TbBaseDDS[[#This Row],[Qtd total de Colaboradores]])","v":1},null,{"$f":"IF(TbBaseDDS[[#This Row],[Data]]=\"\",\"\",PROPER(TEXT(TbBaseDDS[[#This Row],[Data]],\"mmm\")))","v":"Jul"},{"$f":"IF(TbBaseDDS[[#This Row],[Data]]=\"\",\"\",YEAR(TbBaseDDS[[#This Row],[Data]]))","v":2023}]
[null,45078,"Tema ","Vídeo",20,18,{"$f":"IF(OR(TbBaseDDS[[#This Row],[Qtd total de Colaboradores]]=\"\",TbBaseDDS[[#This Row],[Qtd. de participantes]]=\"\"),\"\",TbBaseDDS[[#This Row],[Qtd. de participantes]]/TbBaseDDS[[#This Row],[Qtd total de Colaboradores]])","v":0.9},null,{"$f":"IF(TbBaseDDS[[#This Row],[Data]]=\"\",\"\",PROPER(TEXT(TbBaseDDS[[#This Row],[Data]],\"mmm\")))","v":"Jun"},{"$f":"IF(TbBaseDDS[[#This Row],[Data]]=\"\",\"\",YEAR(TbBaseDDS[[#This Row],[Data]]))","v":2023}]
[null,45047,"Tema ","Vídeo",30,30,{"$f":"IF(OR(TbBaseDDS[[#This Row],[Qtd total de Colaboradores]]=\"\",TbBaseDDS[[#This Row],[Qtd. de participantes]]=\"\"),\"\",TbBaseDDS[[#This Row],[Qtd. de participantes]]/TbBaseDDS[[#This Row],[Qtd total de Colaboradores]])","v":1},null,{"$f":"IF(TbBaseDDS[[#This Row],[Data]]=\"\",\"\",PROPER(TEXT(TbBaseDDS[[#This Row],[Data]],\"mmm\")))","v":"Mai"},{"$f":"IF(TbBaseDDS[[#This Row],[Data]]=\"\",\"\",YEAR(TbBaseDDS[[#This Row],[Data]]))","v":2023}]
[null,45139,"Tema ","Book DDs",60,50,{"$f":"IF(OR(TbBaseDDS[[#This Row],[Qtd total de Colaboradores]]=\"\",TbBaseDDS[[#This Row],[Qtd. de participantes]]=\"\"),\"\",TbBaseDDS[[#This Row],[Qtd. de participantes]]/TbBaseDDS[[#This Row],[Qtd total de Colaboradores]])","v":0.83333333333333337},null,{"$f":"IF(TbBaseDDS[[#This Row],[Data]]=\"\",\"\",PROPER(TEXT(TbBaseDDS[[#This Row],[Data]],\"mmm\")))","v":"Ago"},{"$f":"IF(TbBaseDDS[[#This Row],[Data]]=\"\",\"\",YEAR(TbBaseDDS[[#This Row],[Data]]))","v":2023}]
[null,45170,"Tema ","Book DDs",50,35,{"$f":"IF(OR(TbBaseDDS[[#This Row],[Qtd total de Colaboradores]]=\"\",TbBaseDDS[[#This Row],[Qtd. de participantes]]=\"\"),\"\",TbBaseDDS[[#This Row],[Qtd. de participantes]]/TbBaseDDS[[#This Row],[Qtd total de Colaboradores]])","v":0.7},null,{"$f":"IF(TbBaseDDS[[#This Row],[Data]]=\"\",\"\",PROPER(TEXT(TbBaseDDS[[#This Row],[Data]],\"mmm\")))","v":"Set"},{"$f":"IF(TbBaseDDS[[#This Row],[Data]]=\"\",\"\",YEAR(TbBaseDDS[[#This Row],[Data]]))","v":2023}]
[null,45200,"Tema ","Book DDs",20,20,{"$f":"IF(OR(TbBaseDDS[[#This Row],[Qtd total de Colaboradores]]=\"\",TbBaseDDS[[#This Row],[Qtd. de participantes]]=\"\"),\"\",TbBaseDDS[[#This Row],[Qtd. de participantes]]/TbBaseDDS[[#This Row],[Qtd total de Colaboradores]])","v":1},null,{"$f":"IF(TbBaseDDS[[#This Row],[Data]]=\"\",\"\",PROPER(TEXT(TbBaseDDS[[#This Row],[Data]],\"mmm\")))","v":"Out"},{"$f":"IF(TbBaseDDS[[#This Row],[Data]]=\"\",\"\",YEAR(TbBaseDDS[[#This Row],[Data]]))","v":2023}]
[null,45231,"Tema ","Book DDs",30,20,{"$f":"IF(OR(TbBaseDDS[[#This Row],[Qtd total de Colaboradores]]=\"\",TbBaseDDS[[#This Row],[Qtd. de participantes]]=\"\"),\"\",TbBaseDDS[[#This Row],[Qtd. de participantes]]/TbBaseDDS[[#This Row],[Qtd total de Colaboradores]])","v":0.66666666666666663},null,{"$f":"IF(TbBaseDDS[[#This Row],[Data]]=\"\",\"\",PROPER(TEXT(TbBaseDDS[[#This Row],[Data]],\"mmm\")))","v":"Nov"},{"$f":"IF(TbBaseDDS[[#This Row],[Data]]=\"\",\"\",YEAR(TbBaseDDS[[#This Row],[Data]]))","v":2023}]
[null,45261,"Tema ","Book DDs",20,15,{"$f":"IF(OR(TbBaseDDS[[#This Row],[Qtd total de Colaboradores]]=\"\",TbBaseDDS[[#This Row],[Qtd. de participantes]]=\"\"),\"\",TbBaseDDS[[#This Row],[Qtd. de participantes]]/TbBaseDDS[[#This Row],[Qtd total de Colaboradores]])","v":0.75},null,{"$f":"IF(TbBaseDDS[[#This Row],[Data]]=\"\",\"\",PROPER(TEXT(TbBaseDDS[[#This Row],[Data]],\"mmm\")))","v":"Dez"},{"$f":"IF(TbBaseDDS[[#This Row],[Data]]=\"\",\"\",YEAR(TbBaseDDS[[#This Row],[Data]]))","v":2023}]
[null,45231,"Tema ","Power Point",20,15,{"$f":"IF(OR(TbBaseDDS[[#This Row],[Qtd total de Colaboradores]]=\"\",TbBaseDDS[[#This Row],[Qtd. de participantes]]=\"\"),\"\",TbBaseDDS[[#This Row],[Qtd. de participantes]]/TbBaseDDS[[#This Row],[Qtd total de Colaboradores]])","v":0.75},null,{"$f":"IF(TbBaseDDS[[#This Row],[Data]]=\"\",\"\",PROPER(TEXT(TbBaseDDS[[#This Row],[Data]],\"mmm\")))","v":"Nov"},{"$f":"IF(TbBaseDDS[[#This Row],[Data]]=\"\",\"\",YEAR(TbBaseDDS[[#This Row],[Data]]))","v":2023}]
[null,44562,"Tema ","Power Point",30,30,{"$f":"IF(OR(TbBaseDDS[[#This Row],[Qtd total de Colaboradores]]=\"\",TbBaseDDS[[#This Row],[Qtd. de participantes]]=\"\"),\"\",TbBaseDDS[[#This Row],[Qtd. de participantes]]/TbBaseDDS[[#This Row],[Qtd total de Colaboradores]])","v":1},null,{"$f":"IF(TbBaseDDS[[#This Row],[Data]]=\"\",\"\",PROPER(TEXT(TbBaseDDS[[#This Row],[Data]],\"mmm\")))","v":"Jan"},{"$f":"IF(TbBaseDDS[[#This Row],[Data]]=\"\",\"\",YEAR(TbBaseDDS[[#This Row],[Data]]))","v":2022}]
[null,44927,"Tema ","Palestra",50,47,{"$f":"IF(OR(TbBaseDDS[[#This Row],[Qtd total de Colaboradores]]=\"\",TbBaseDDS[[#This Row],[Qtd. de participantes]]=\"\"),\"\",TbBaseDDS[[#This Row],[Qtd. de participantes]]/TbBaseDDS[[#This Row],[Qtd total de Colaboradores]])","v":0.94},null,{"$f":"IF(TbBaseDDS[[#This Row],[Data]]=\"\",\"\",PROPER(TEXT(TbBaseDDS[[#This Row],[Data]],\"mmm\")))","v":"Jan"},{"$f":"IF(TbBaseDDS[[#This Row],[Data]]=\"\",\"\",YEAR(TbBaseDDS[[#This Row],[Data]]))","v":2023}]
[null,44958,"Tema ","Palestra",30,30,{"$f":"IF(OR(TbBaseDDS[[#This Row],[Qtd total de Colaboradores]]=\"\",TbBaseDDS[[#This Row],[Qtd. de participantes]]=\"\"),\"\",TbBaseDDS[[#This Row],[Qtd. de participantes]]/TbBaseDDS[[#This Row],[Qtd total de Colaboradores]])","v":1},null,{"$f":"IF(TbBaseDDS[[#This Row],[Data]]=\"\",\"\",PROPER(TEXT(TbBaseDDS[[#This Row],[Data]],\"mmm\")))","v":"Fev"},{"$f":"IF(TbBaseDDS[[#This Row],[Data]]=\"\",\"\",YEAR(TbBaseDDS[[#This Row],[Data]]))","v":2023}]
[null,44986,"Tema ","Palestra",20,20,{"$f":"IF(OR(TbBaseDDS[[#This Row],[Qtd total de Colaboradores]]=\"\",TbBaseDDS[[#This Row],[Qtd. de participantes]]=\"\"),\"\",TbBaseDDS[[#This Row],[Qtd. de participantes]]/TbBaseDDS[[#This Row],[Qtd total de Colaboradores]])","v":1},null,{"$f":"IF(TbBaseDDS[[#This Row],[Data]]=\"\",\"\",PROPER(TEXT(TbBaseDDS[[#This Row],[Data]],\"mmm\")))","v":"Mar"},{"$f":"IF(TbBaseDDS[[#This Row],[Data]]=\"\",\"\",YEAR(TbBaseDDS[[#This Row],[Data]]))","v":2023}]
[null,44958,"Tema ","Palestra",20,18,{"$f":"IF(OR(TbBaseDDS[[#This Row],[Qtd total de Colaboradores]]=\"\",TbBaseDDS[[#This Row],[Qtd. de participantes]]=\"\"),\"\",TbBaseDDS[[#This Row],[Qtd. de participantes]]/TbBaseDDS[[#This Row],[Qtd total de Colaboradores]])","v":0.9},null,{"$f":"IF(TbBaseDDS[[#This Row],[Data]]=\"\",\"\",PROPER(TEXT(TbBaseDDS[[#This Row],[Data]],\"mmm\")))","v":"Fev"},{"$f":"IF(TbBaseDDS[[#This Row],[Data]]=\"\",\"\",YEAR(TbBaseDDS[[#This Row],[Data]]))","v":2023}]
[null,45047,"Tema ","Power Point",30,30,{"$f":"IF(OR(TbBaseDDS[[#This Row],[Qtd total de Colaboradores]]=\"\",TbBaseDDS[[#This Row],[Qtd. de participantes]]=\"\"),\"\",TbBaseDDS[[#This Row],[Qtd. de participantes]]/TbBaseDDS[[#This Row],[Qtd total de Colaboradores]])","v":1},null,{"$f":"IF(TbBaseDDS[[#This Row],[Data]]=\"\",\"\",PROPER(TEXT(TbBaseDDS[[#This Row],[Data]],\"mmm\")))","v":"Mai"},{"$f":"IF(TbBaseDDS[[#This Row],[Data]]=\"\",\"\",YEAR(TbBaseDDS[[#This Row],[Data]]))","v":2023}]
[null,45170,"Tema ","Vídeo",30,20,{"$f":"IF(OR(TbBaseDDS[[#This Row],[Qtd total de Colaboradores]]=\"\",TbBaseDDS[[#This Row],[Qtd. de participantes]]=\"\"),\"\",TbBaseDDS[[#This Row],[Qtd. de participantes]]/TbBaseDDS[[#This Row],[Qtd total de Colaboradores]])","v":0.66666666666666663},null,{"$f":"IF(TbBaseDDS[[#This Row],[Data]]=\"\",\"\",PROPER(TEXT(TbBaseDDS[[#This Row],[Data]],\"mmm\")))","v":"Set"},{"$f":"IF(TbBaseDDS[[#This Row],[Data]]=\"\",\"\",YEAR(TbBaseDDS[[#This Row],[Data]]))","v":2023}]
[null,45261,"Tema ","Power Point",40,28,{"$f":"IF(OR(TbBaseDDS[[#This Row],[Qtd total de Colaboradores]]=\"\",TbBaseDDS[[#This Row],[Qtd. de participantes]]=\"\"),\"\",TbBaseDDS[[#This Row],[Qtd. de participantes]]/TbBaseDDS[[#This Row],[Qtd total de Colaboradores]])","v":0.7},null,{"$f":"IF(TbBaseDDS[[#This Row],[Data]]=\"\",\"\",PROPER(TEXT(TbBaseDDS[[#This Row],[Data]],\"mmm\")))","v":"Dez"},{"$f":"IF(TbBaseDDS[[#This Row],[Data]]=\"\",\"\",YEAR(TbBaseDDS[[#This Row],[Data]]))","v":2023}]
[null,45139,"Tema ","Power Point",50,30,{"$f":"IF(OR(TbBaseDDS[[#This Row],[Qtd total de Colaboradores]]=\"\",TbBaseDDS[[#This Row],[Qtd. de participantes]]=\"\"),\"\",TbBaseDDS[[#This Row],[Qtd. de participantes]]/TbBaseDDS[[#This Row],[Qtd total de Colaboradores]])","v":0.6},null,{"$f":"IF(TbBaseDDS[[#This Row],[Data]]=\"\",\"\",PROPER(TEXT(TbBaseDDS[[#This Row],[Data]],\"mmm\")))","v":"Ago"},{"$f":"IF(TbBaseDDS[[#This Row],[Data]]=\"\",\"\",YEAR(TbBaseDDS[[#This Row],[Data]]))","v":2023}]
[null,45047,"Tema ","Palestra",60,45,{"$f":"IF(OR(TbBaseDDS[[#This Row],[Qtd total de Colaboradores]]=\"\",TbBaseDDS[[#This Row],[Qtd. de participantes]]=\"\"),\"\",TbBaseDDS[[#This Row],[Qtd. de participantes]]/TbBaseDDS[[#This Row],[Qtd total de Colaboradores]])","v":0.75},null,{"$f":"IF(TbBaseDDS[[#This Row],[Data]]=\"\",\"\",PROPER(TEXT(TbBaseDDS[[#This Row],[Data]],\"mmm\")))","v":"Mai"},{"$f":"IF(TbBaseDDS[[#This Row],[Data]]=\"\",\"\",YEAR(TbBaseDDS[[#This Row],[Data]]))","v":2023}]
[null,45261,"Tema ","Vídeo",30,30,{"$f":"IF(OR(TbBaseDDS[[#This Row],[Qtd total de Colaboradores]]=\"\",TbBaseDDS[[#This Row],[Qtd. de participantes]]=\"\"),\"\",TbBaseDDS[[#This Row],[Qtd. de participantes]]/TbBaseDDS[[#This Row],[Qtd total de Colaboradores]])","v":1},null,{"$f":"IF(TbBaseDDS[[#This Row],[Data]]=\"\",\"\",PROPER(TEXT(TbBaseDDS[[#This Row],[Data]],\"mmm\")))","v":"Dez"},{"$f":"IF(TbBaseDDS[[#This Row],[Data]]=\"\",\"\",YEAR(TbBaseDDS[[#This Row],[Data]]))","v":2023}]
[null,44927,"Tema ","Vídeo",20,20,{"$f":"IF(OR(TbBaseDDS[[#This Row],[Qtd total de Colaboradores]]=\"\",TbBaseDDS[[#This Row],[Qtd. de participantes]]=\"\"),\"\",TbBaseDDS[[#This Row],[Qtd. de participantes]]/TbBaseDDS[[#This Row],[Qtd total de Colaboradores]])","v":1},null,{"$f":"IF(TbBaseDDS[[#This Row],[Data]]=\"\",\"\",PROPER(TEXT(TbBaseDDS[[#This Row],[Data]],\"mmm\")))","v":"Jan"},{"$f":"IF(TbBaseDDS[[#This Row],[Data]]=\"\",\"\",YEAR(TbBaseDDS[[#This Row],[Data]]))","v":2023}]

{"sheet":"Dash.Acidentes","index":3,"n_rows":0,"n_cols":0,"rows_kept":0,"cut":false,"hidden":false,"merged":[],"read":"row_number_cap"}

{"sheet":"Dash DDS","index":4,"n_rows":0,"n_cols":0,"rows_kept":0,"cut":false,"hidden":false,"merged":[]}

{"sheet":"Instruções","index":5,"n_rows":39,"n_cols":24,"rows_kept":39,"cut":false,"hidden":false,"merged":[[37,1,37,19],[39,1,39,19],[38,0,38,22],[24,1,24,20],[31,1,31,19],[32,1,32,19],[33,1,33,19],[34,1,34,19],[35,1,35,19],[36,1,36,19],[25,1,25,19],[26,1,26,19],[27,1,27,19],[28,1,28,19],[29,1,29,19],[30,1,30,19],[3,1,3,22],[13,1,13,22],[21,1,21,22],[11,1,11,20],[23,1,23,20],[22,1,22,20],[5,1,5,20],[6,1,6,20],[4,1,4,20]]}
[]
[]
[null,null,null,null,null,null,null,null,null,null,null,null,null,null,null,null,null,null,null,null,null,null,null,{"$error":"#N/A"}]
[null,"REGRAS PARA USO"]
[null,"Muito obrigado por adquirir este produto. É uma grande satisfação tê-lo como cliente."]
[null,"Esta planilha foi planejada e desenvolvida de forma que fosse uma forma prática e fácil para conseguir controlar seu projeto."]
[null,"Qualquer dúvida, por favor entrar em contato com : contato@almeidaplanilhas.com.br"]
[]
[null,"Planilha 100% editável, para que você possa deixar do jeito que deseja."]
[]
[null,"Planilhas protegidas por Direitos Autorais,"]
[null,"Dessa forma, ao realizar a compra em nossa loja, nossas planilhas NÃO podem ser vendidas, revendidas, distribuídas, publicadas em uma galeria online, hospedadas em um site, ou colocadas em qualquer servidor de uma forma que a torne disponível para o público em geral sem uma autorização por escrito."]
[]
[null,"DICAS INICIAIS"]
["Ø","Geralmente ao abrir a planilha nas primeiras vezes, o Excel apresenta essa mensagem como forma de segurança, basta clicar em \"Habilitar Edição\", para que a planilha funcione corretamente."]
[]
[]
["Ø","Os dashboards estão bloqueados para que o usuário não clique em algum objeto e arraste ele. Caso você queira desbloquear. Basta seguir as seguintes etapas."]
[null,"Obs.: Essas etapas só são válidas após a compra da planilha. Na versão DEMONSTRATIVA, a planilha contém senha."]
[]
[]
[null,"INSTRUÇÕES DE USO"]
["Ø","Cadastro"]
[null,"Cadastre os campos iniciais como inspetor e setores, agentes de lesões, caracterização de acidente e Partes do corpo afetado, e métodos utilizados nos DDS."]
[null,"OBS.: Recomendamos que não seja deletado ou modificado as partes do corpo, pois alguns ficam posicionado de forma fixa no dash. Apenas adicione as partes novas que desejar."]
[]
["Ø","Base"]
[null,"Lance e controle todos os Acidentes e diálogos Dários de Segurança realizados."]
[]
["Ø","Dashboard"]
[null,"Nessa área foi dividido entre 2 dashboards e será possível realizar as seguintes análises:"]
[]
[null,"Acidentes de Trabalho"]
[null,"- Quantidade de Acidentes;\n- Turno dos funcionários;\n- Gênero dos funcionários acidentados;\n- Custo com os acidentes;\n- Tipos de Acidentes;\n- Partes do Corpo afetado;\n- Top 3 - Agentes de lesão;\n- Top 3 - Caracterização do acidentes;\n- Acidentes por setor;\n- Variação de acidentes durante o ano.\n"]
[]
[null,"Diálogo Diário de Segurança"]
[null,"- DDS realizados;\n- Média de colaboradores previstos;\n- Média de participantes;\n- % de participação;\n- Métodos utilizados;\n- Média de colaboradores previstos x Participantes durante o ano;\n- DDS realizados durante o ano;\n- % de participação durante o ano.\n\n"]
[]
["FAÇA UM ÓTIMO USO"]

{"sheet":"Apoio","index":6,"n_rows":53,"n_cols":84,"rows_kept":53,"cut":false,"hidden":true,"merged":[[12,6,12,7],[1,1,1,7],[5,6,5,7],[6,6,6,7],[7,6,7,7],[8,5,8,7],[11,5,11,7],[2,5,2,7],[3,6,3,7],[4,5,4,7],[1,9,1,14],[1,50,1,53],[1,32,1,48],[0,55,0,83],[0,1,0,53],[1,16,1,19],[1,26,1,30],[1,21,1,24],[1,63,1,70],[1,82,1,83],[1,56,1,61],[1,72,1,80]]}
[null,"Acidentes de trabalho"]
[null,"CAIXAS",null,null,null,null,null,null,null,"TIPOS DE ACIDENTES",null,null,null,null,null,null,"TOP 3 - AGENTES DE LESÃO",null,null,null,null,"TOP 3 - CARACTERIZAÇÃO DO ACIDENTE",null,null,null,null,"ACIDENTES POR SETOR",null,null,null,null,null,"PARTES DO CORPO",null,null,null,null,null,null,null,null,null,null,null,null,null,null,null,null,null,"ACIDENTES DURANTE O ANO",null,null,null,null,null,"CAIXAS",null,null,null,null,null,null,"MÉTODO UTILIZADO",null,null,null,null,null,null,null,null,"Colaboradores x participantes e % de participação",null,null,null,null,null,null,null,null,null,"DDS Realizado"]
[null,"Turno","Sexo","Qtd","Valor","ACIDENTES",null,null,null,"Tipo de acidente","Qtd","Tipos de acidente","Qtd","%","% rest.",null,"Agente de lesão","QTD","Agente de lesão","Qtd",null,"Caracterização do acidente","qtd","Caracterização do acidente","qtd",null,"Setor","Qtd",0,"Setor","Qtd",null,"Parte do corpo atingida","qtd","Padrão","Qtd","Partes do corpo","Qtd",null,"ID","Outras partes","Qtd","P.I","P.F","P.F2","ID","Outras partes ordem","Outras partes","QTD",null,"Mês","QTD","Mês","Qtd",null,null,"Método utilizado","Qtd DDS","total de Colaboradores","Qtd. de participantes ","Qtd de DDS",{"$f":"SUM($BF$4:$BF$20)","v":27},null,"ID","Método utlizado","QTD","P.I","P.F",0,"Método utlizado","QTD",null,"Mês","QTD de DDS","Qtd total de Colaboradores ","Qtd. de participantes ","ID","Mês","Colaboradores","Participantes","%",null,"Mês","Qtd"]
[null,"Tarde","Feminino",2,50,"Acidentes",{"$f":"SUM($G$6:$G$8)","v":17},null,null,"Acidente de trajeto",5,"Acidente típico",{"$f":"SUMIF($J$4:$J$10,L4,$K$4:$K$10)","v":6},{"$f":"IF($M$7=0,0,M4/$M$7)","v":0.35294117647058826},{"$f":"1-N4","v":0.64705882352941169},null,"Choque",5,{"$f":"IF(Q4=\"\",\"\",Q4)","v":"Choque"},{"$f":"IF(R4=\"\",\"\",R4)","v":5},null,"Com danos materiais",5,{"$f":"IF(V4=\"\",\"\",V4)","v":"Com danos materiais"},{"$f":"IF(W4=\"\",\"\",W4)","v":5},null,"Pintura",5,{"$f":"(AC3*7)+1","v":1},{"$f":"IFERROR(IF(INDEX($AA$4:$AB$55,$AC4,1)=0,\" \",INDEX($AA$4:$AB$55,$AC4,1)),\" \")","v":"Pintura"},{"$f":"IFERROR(IF(INDEX($AA$4:$AB$55,$AC4,2)=0,0,INDEX($AA$4:$AB$55,$AC4,2)),\"\")","v":5},null,"Face",1,"Crânio",{"$f":"SUMIF($AG$4:$AG$70,AI4,$AH$4:$AH$70)","v":2},{"$f":"IF(AJ4=0,\"\",AI4)","v":"Crânio"},{"$f":"IF(AJ4=0,\"\",AJ4)","v":2},null,1,{"$f":"IFERROR(INDEX(Lista_PartesCorpo,AN4,1),\"\")","v":"Crânio"},{"$f":"IF(AO4=\"\",\"\",IF(ISERROR(MATCH(AO4,$AI$4:$AI$15,0)),SUMIF($AG$4:$AG$100,AO4,$AH$4:$AH$100),0))","v":0},{"$f":"IF(OR(AP4=\"\",AP4=0),\"\",RANK(AP4,$AP$4:$AP$53,0))","v":""},{"$f":"IFERROR(IF(COUNTIF($AQ$3:AQ3,AQ4)>0,AQ4+COUNTIF($AQ$3:AQ3,AQ4),AQ4),\"\")","v":""},{"$f":"IF(AR4=\"\",\"\",IF(AR4>10,\"OK\",AR4))","v":""},{"$f":"IF(AU4=\"\",\"\",COUNTA(AT$3:$AT3)-COUNTBLANK(AT$3:$AT3))","v":1},{"$f":"IFERROR(INDEX($AO$4:$AP$53,MATCH(AN4,$AS$4:$AS$53,0),1),\"\")","v":"Joelho"},{"$f":"IFERROR(INDEX($AU$4:$AU$14,MATCH(AN4,$AT$4:$AT$14,0),1),\"\")","v":"Joelho"},{"$f":"IF(AV4=\"\",\"\",\nIF(AV4<>\"outros\",SUMIF($AO$4:$AO$53,AV4,$AP$4:$AP$53),SUMIF($AS$4:$AS$53,\"ok\",$AP$4:$AP$53)))","v":3},null,"Jan",1,"Jan",{"$f":"SUMIF($AY$4:$AY$20,BA4,$AZ$4:$AZ$20)","v":1},null,null,"Book DDs",6,210,170,"Média de Colaboradores Previstos",{"$f":"IFERROR(ROUNDUP(SUM($BG$4:$BG$20)/$BJ$3,0),0)","v":33},null,1,{"$f":"IFERROR(INDEX(Lista_Metodo,Apoio!BL4,1),\"\")","v":"Book DDs"},{"$f":"IF(BM4=\"\",\"\",SUMIF($BE$4:$BE$20,BM4,$BF$4:$BF$20))","v":6},{"$f":"IF(OR(BM4=\"\",BN4=0),\"\",RANK(BN4,$BN$4:$BN$13,0))","v":2},{"$f":"IFERROR(IF(COUNTIF($BO$3:BO3,BO4)>0,BO4+COUNTIF($BO$3:BO3,BO4),BO4),\"\")","v":2},{"$f":"(BQ3*4)+1","v":1},{"$f":"IFERROR(INDEX($BM$4:$BN$13,MATCH($BQ4,$BP$4:$BP$13,0),1),\" \")","v":"Vídeo"},{"$f":"IF(BR4=\"\",\"\",SUMIF($BM$4:$BM$13,BR4,$BN$4:$BN$13))","v":9},null,"Jan",5,180,167,1,"Jan",{"$f":"IFERROR(ROUNDUP(SUMIF($BU$4:$BU$20,$BZ4,$BW$4:$BW$20)/SUMIF($BU$4:$BU$20,$BZ4,$BV$4:$BV$20),0),0)","v":36},{"$f":"IFERROR(ROUNDDOWN(SUMIF($BU$4:$BU$20,$BZ4,$BX$4:$BX$20)/SUMIF($BU$4:$BU$20,$BZ4,$BV$4:$BV$20),0),0)","v":33},{"$f":"IFERROR(IF(CA4=0,0,CB4/CA4),0)","v":0.91666666666666663},null,"Jan",{"$f":"SUMIF($BU$4:$BU$20,$BZ4,$BV$4:$BV$20)","v":5}]
[null,"Tarde","Masculino",1,500,"TURNO",null,null,null,"Acidente Típico",6,"Acidente de trajeto",{"$f":"SUMIF($J$4:$J$10,L5,$K$4:$K$10)","v":5},{"$f":"IF($M$7=0,0,M5/$M$7)","v":0.29411764705882354},{"$f":"1-N5","v":0.70588235294117641},null,"Acidente de carro",4,{"$f":"IF(Q5=\"\",\"\",Q5)","v":"Acidente de carro"},{"$f":"IF(R5=\"\",\"\",R5)","v":4},null,"Sem danos materiais",3,{"$f":"IF(V5=\"\",\"\",V5)","v":"Sem danos materiais"},{"$f":"IF(W5=\"\",\"\",W5)","v":3},null,"Montagem",4,{"$f":"AC4+1","v":2},{"$f":"IFERROR(IF(INDEX($AA$4:$AB$55,$AC5,1)=0,\" \",INDEX($AA$4:$AB$55,$AC5,1)),\" \")","v":"Montagem"},{"$f":"IFERROR(IF(INDEX($AA$4:$AB$55,$AC5,2)=0,0,INDEX($AA$4:$AB$55,$AC5,2)),\"\")","v":4},null,"Joelho",3,"Face",1,{"$f":"IF(AJ5=0,\"\",AI5)","v":"Face"},{"$f":"IF(AJ5=0,\"\",AJ5)","v":1},null,2,"Face",0,{"$f":"IF(OR(AP5=\"\",AP5=0),\"\",RANK(AP5,$AP$4:$AP$53,0))","v":""},{"$f":"IFERROR(IF(COUNTIF($AQ$3:AQ4,AQ5)>0,AQ5+COUNTIF($AQ$3:AQ4,AQ5),AQ5),\"\")","v":""},{"$f":"IF(AR5=\"\",\"\",IF(AR5>10,\"OK\",AR5))","v":""},{"$f":"IF(AU5=\"\",\"\",COUNTA(AT$3:$AT4)-COUNTBLANK(AT$3:$AT4))","v":2},"Cotovelo",{"$f":"IFERROR(INDEX($AU$4:$AU$14,MATCH(AN5,$AT$4:$AT$14,0),1),\"\")","v":"Cotovelo"},{"$f":"IF(AV5=\"\",\"\",\nIF(AV5<>\"outros\",SUMIF($AO$4:$AO$53,AV5,$AP$4:$AP$53),SUMIF($AS$4:$AS$53,\"ok\",$AP$4:$AP$53)))","v":1},null,"Fev",2,"Fev",{"$f":"SUMIF($AY$4:$AY$20,BA5,$AZ$4:$AZ$20)","v":2},null,null,"Palestra",6,200,178,"Média de participantes",{"$f":"IFERROR(ROUNDDOWN(SUM($BH$4:$BH$20)/$BJ$3,0),0)","v":27},null,2,{"$f":"IFERROR(INDEX(Lista_Metodo,Apoio!BL5,1),\"\")","v":"Vídeo"},{"$f":"IF(BM5=\"\",\"\",SUMIF($BE$4:$BE$20,BM5,$BF$4:$BF$20))","v":9},{"$f":"IF(OR(BM5=\"\",BN5=0),\"\",RANK(BN5,$BN$4:$BN$13,0))","v":1},{"$f":"IFERROR(IF(COUNTIF($BO$3:BO4,BO5)>0,BO5+COUNTIF($BO$3:BO4,BO5),BO5),\"\")","v":1},{"$f":"BQ4+1","v":2},{"$f":"IFERROR(INDEX($BM$4:$BN$13,MATCH($BQ5,$BP$4:$BP$13,0),1),\" \")","v":"Book DDs"},{"$f":"IF(BR5=\"\",\"\",SUMIF($BM$4:$BM$13,BR5,$BN$4:$BN$13))","v":6},null,"Fev",4,100,98,2,"Fev",{"$f":"IFERROR(ROUNDUP(SUMIF($BU$4:$BU$20,$BZ5,$BW$4:$BW$20)/SUMIF($BU$4:$BU$20,$BZ5,$BV$4:$BV$20),0),0)","v":25},{"$f":"IFERROR(ROUNDDOWN(SUMIF($BU$4:$BU$20,$BZ5,$BX$4:$BX$20)/SUMIF($BU$4:$BU$20,$BZ5,$BV$4:$BV$20),0),0)","v":24},{"$f":"IFERROR(IF(CA5=0,0,CB5/CA5),0)","v":0.96},null,"Fev",{"$f":"SUMIF($BU$4:$BU$20,$BZ5,$BV$4:$BV$20)","v":4}]
[null,"Noite","Feminino",3,145,"Manhã",{"$f":"SUMIF($B$3:$B$20,F6,$D$3:$D$20)","v":5},null,null,"Doença Ocupacional",6,"Doença Ocupacional",6,0.35294117647058826,0.64705882352941169,null,"Queda de telhado",3,"Queda de telhado",3,null,"Fatal",3,"Fatal",3,null,"Caldeiraria",3,{"$f":"AC5+1","v":3},"Caldeiraria",3,null,"Orgãos internos",1,"Olhos",0,"","",null,3,"Olhos",0,"",{"$f":"IFERROR(IF(COUNTIF($AQ$3:AQ5,AQ6)>0,AQ6+COUNTIF($AQ$3:AQ5,AQ6),AQ6),\"\")","v":""},"",{"$f":"IF(AU6=\"\",\"\",COUNTA(AT$3:$AT5)-COUNTBLANK(AT$3:$AT5))","v":3},"Abdômen","Abdômen",1,null,"Mar",2,"Mar",2,null,null,"Power Point",6,200,158,"% de Participação",{"$f":"IF(BJ4=0,0,BJ5/BJ4)","v":0.81818181818181823},null,3,{"$f":"IFERROR(INDEX(Lista_Metodo,Apoio!BL6,1),\"\")","v":"Palestra"},6,2,{"$f":"IFERROR(IF(COUNTIF($BO$3:BO5,BO6)>0,BO6+COUNTIF($BO$3:BO5,BO6),BO6),\"\")","v":3},{"$f":"BQ5+1","v":3},"Palestra",6,null,"Mar",2,40,38,3,"Mar",20,19,0.95,null,"Mar",2]
[null,"Noite","Masculino",6,355,"Tarde",{"$f":"SUMIF($B$3:$B$20,F7,$D$3:$D$20)","v":3},null,null,null,null,"Total",{"$f":"SUM(M4:M6)","v":17},null,null,null,"Acidente de moto",3,null,null,null,"Com restrição",2,null,null,null,"Adminstrativo",1,4,"Adminstrativo",1,null,"Crânio",2,"Pescoço",1,"Pescoço",1,null,4,"Pescoço",0,"",{"$f":"IFERROR(IF(COUNTIF($AQ$3:AQ6,AQ7)>0,AQ7+COUNTIF($AQ$3:AQ6,AQ7),AQ7),\"\")","v":""},"",{"$f":"IF(AU7=\"\",\"\",COUNTA(AT$3:$AT6)-COUNTBLANK(AT$3:$AT6))","v":4},{"$f":"IFERROR(INDEX($AO$4:$AP$53,MATCH(AN7,$AS$4:$AS$53,0),1),\"\")","v":"Orgãos internos"},"Orgãos internos",1,null,"Mai",2,"Abr",2,null,null,"Vídeo",9,260,238,null,null,null,4,{"$f":"IFERROR(INDEX(Lista_Metodo,Apoio!BL7,1),\"\")","v":"Power Point"},6,2,{"$f":"IFERROR(IF(COUNTIF($BO$3:BO6,BO7)>0,BO7+COUNTIF($BO$3:BO6,BO7),BO7),\"\")","v":4},4,"Power Point",6,null,"Abr",1,30,25,4,"Abr",30,25,0.83333333333333337,null,"Abr",1]
[null,"Manhã","Masculino",5,580,"Noite",9,null,null,null,null,null,null,null,null,null,"Queda de escada",1,null,null,null,"Incapacitante",2,null,null,null,"Usinagem",1,5,"Usinagem",1,null,"Pescoço",1,"Ombro",1,"Ombro",1,null,5,"Ombro",0,"",{"$f":"IFERROR(IF(COUNTIF($AQ$3:AQ7,AQ8)>0,AQ8+COUNTIF($AQ$3:AQ7,AQ8),AQ8),\"\")","v":""},"",{"$f":"IF(AU8=\"\",\"\",COUNTA(AT$3:$AT7)-COUNTBLANK(AT$3:$AT7))","v":""},"","","",null,"Abr",2,"Mai",2,null,null,null,null,null,null,null,null,null,5,{"$f":"IFERROR(INDEX(Lista_Metodo,Apoio!BL8,1),\"\")","v":""},"","",{"$f":"IFERROR(IF(COUNTIF($BO$3:BO7,BO8)>0,BO8+COUNTIF($BO$3:BO7,BO8),BO8),\"\")","v":""},null,null,null,null,"Mai",3,120,105,5,"Mai",40,35,0.875,null,"Mai",3]
[null,null,null,null,null,"GÊNERO",null,null,null,null,null,null,null,null,null,null,"Manipulação de ferramentas",1,null,null,null,"Sem restrição",1,null,null,null,"Financeiro",1,{"$f":"AC8+1","v":6},"Financeiro",1,null,"Braço",3,"Braço",3,"Braço",3,null,6,"Braço",0,"",{"$f":"IFERROR(IF(COUNTIF($AQ$3:AQ8,AQ9)>0,AQ9+COUNTIF($AQ$3:AQ8,AQ9),AQ9),\"\")","v":""},"",{"$f":"IF(AU9=\"\",\"\",COUNTA(AT$3:$AT8)-COUNTBLANK(AT$3:$AT8))","v":""},"","","",null,"Jun",2,"Jun",2,null,null,null,null,null,null,null,null,null,6,{"$f":"IFERROR(INDEX(Lista_Metodo,Apoio!BL9,1),\"\")","v":""},"","",{"$f":"IFERROR(IF(COUNTIF($BO$3:BO8,BO9)>0,BO9+COUNTIF($BO$3:BO8,BO9),BO9),\"\")","v":""},null,null,null,null,"Jun",1,20,18,6,"Jun",20,18,0.9,null,"Jun",1]
[null,null,null,null,null,"Feminino",{"$f":"SUMIF($C$3:$C$20,F10,$D$3:$D$20)","v":5},{"$f":"IFERROR(G10/SUM($G$10:$G$11),0)","v":0.29411764705882354},null,null,null,null,null,null,null,null,null,null,null,null,null,"Não incapacitante",1,null,null,null,"Operacional",1,null,null,null,null,"Abdômen",1,"Mão",0,"","",null,7,"Cotovelo",1,2,{"$f":"IFERROR(IF(COUNTIF($AQ$3:AQ9,AQ10)>0,AQ10+COUNTIF($AQ$3:AQ9,AQ10),AQ10),\"\")","v":2},2,{"$f":"IF(AU10=\"\",\"\",COUNTA(AT$3:$AT9)-COUNTBLANK(AT$3:$AT9))","v":""},"","","",null,"Ago",1,"Jul",1,null,null,null,null,null,null,null,null,null,7,{"$f":"IFERROR(INDEX(Lista_Metodo,Apoio!BL10,1),\"\")","v":""},"","",{"$f":"IFERROR(IF(COUNTIF($BO$3:BO9,BO10)>0,BO10+COUNTIF($BO$3:BO9,BO10),BO10),\"\")","v":""},null,null,null,null,"Ago",2,110,80,7,"Jul",30,30,1,null,"Jul",1]
[null,null,null,null,null,"Masculino",{"$f":"SUMIF($C$3:$C$20,F11,$D$3:$D$20)","v":12},{"$f":"IFERROR(G11/SUM($G$10:$G$11),0)","v":0.70588235294117652},null,null,null,null,null,null,null,null,null,null,null,null,null,null,null,null,null,null,"Comercial",1,null,null,null,null,"Ombro",1,"Dedos mão",0,"","",null,8,"Punho",0,"",{"$f":"IFERROR(IF(COUNTIF($AQ$3:AQ10,AQ11)>0,AQ11+COUNTIF($AQ$3:AQ10,AQ11),AQ11),\"\")","v":""},"",{"$f":"IF(AU11=\"\",\"\",COUNTA(AT$3:$AT10)-COUNTBLANK(AT$3:$AT10))","v":""},"","","",null,"Set",1,"Ago",1,null,null,null,null,null,null,null,null,null,8,{"$f":"IFERROR(INDEX(Lista_Metodo,Apoio!BL11,1),\"\")","v":""},"","",{"$f":"IFERROR(IF(COUNTIF($BO$3:BO10,BO11)>0,BO11+COUNTIF($BO$3:BO10,BO11),BO11),\"\")","v":""},null,null,null,null,"Set",2,80,55,8,"Ago",55,40,0.72727272727272729,null,"Ago",2]
[null,null,null,null,null,"VALOR",null,null,null,null,null,null,null,null,null,null,null,null,null,null,null,null,null,null,null,null,null,null,null,null,null,null,"Cotovelo",1,"Reg. Lombar",0,"","",null,9,"Mão",0,"",{"$f":"IFERROR(IF(COUNTIF($AQ$3:AQ11,AQ12)>0,AQ12+COUNTIF($AQ$3:AQ11,AQ12),AQ12),\"\")","v":""},"",{"$f":"IF(AU12=\"\",\"\",COUNTA(AT$3:$AT11)-COUNTBLANK(AT$3:$AT11))","v":""},"","","",null,"Out",1,"Set",1,null,null,null,null,null,null,null,null,null,9,{"$f":"IFERROR(INDEX(Lista_Metodo,Apoio!BL12,1),\"\")","v":""},"","",{"$f":"IFERROR(IF(COUNTIF($BO$3:BO11,BO12)>0,BO12+COUNTIF($BO$3:BO11,BO12),BO12),\"\")","v":""},null,null,null,null,"Out",1,20,20,9,"Set",40,27,0.67500000000000004,null,"Set",2]
[null,null,null,null,null,"Valor",{"$f":"SUM($E$4:$E$20)","v":1630},null,null,null,null,null,null,null,null,null,null,null,null,null,null,null,null,null,null,null,null,null,null,null,null,null,"Dedos Pé",1,"Perna",1,"Perna",1,null,10,"Dedos mão",0,"",{"$f":"IFERROR(IF(COUNTIF($AQ$3:AQ12,AQ13)>0,AQ13+COUNTIF($AQ$3:AQ12,AQ13),AQ13),\"\")","v":""},"",{"$f":"IF(AU13=\"\",\"\",COUNTA(AT$3:$AT12)-COUNTBLANK(AT$3:$AT12))","v":""},"","","",null,"Nov",1,"Out",1,null,null,null,null,null,null,null,null,null,10,{"$f":"IFERROR(INDEX(Lista_Metodo,Apoio!BL13,1),\"\")","v":""},"","",{"$f":"IFERROR(IF(COUNTIF($BO$3:BO12,BO13)>0,BO13+COUNTIF($BO$3:BO12,BO13),BO13),\"\")","v":""},null,null,null,null,"Nov",2,50,35,10,"Out",20,20,1,null,"Out",1]
[null,null,null,null,null,null,null,null,null,null,null,null,null,null,null,null,null,null,null,null,null,null,null,null,null,null,null,null,null,null,null,null,"Pé",1,"Pé",1,"Pé",1,null,11,"Abdômen",1,2,{"$f":"IFERROR(IF(COUNTIF($AQ$3:AQ13,AQ14)>0,AQ14+COUNTIF($AQ$3:AQ13,AQ14),AQ14),\"\")","v":3},3,{"$f":"IF(AU14=\"\",\"\",COUNTA(AT$3:$AT13)-COUNTBLANK(AT$3:$AT13))","v":""},{"$f":"IF(COUNTIF($AS$4:$AS$53,\"Ok\")>0,\"Outros\",\"\")","v":""},"","",null,"Dez",1,"Nov",1,null,null,null,null,null,null,null,null,null,null,null,null,null,null,null,null,null,null,"Dez",3,90,73,11,"Nov",25,17,0.68,null,"Nov",2]
[null,null,null,null,null,null,null,null,null,null,null,null,null,null,null,null,null,null,null,null,null,null,null,null,null,null,null,null,null,null,null,null,"Perna",1,"Dedos pé",1,"Dedos pé",1,null,12,"Reg. Lombar",0,"",{"$f":"IFERROR(IF(COUNTIF($AQ$3:AQ14,AQ15)>0,AQ15+COUNTIF($AQ$3:AQ14,AQ15),AQ15),\"\")","v":""},"",null,null,null,null,null,"Jul",1,"Dez",1,null,null,null,null,null,null,null,null,null,null,null,null,null,null,null,null,null,null,"Jul",1,30,30,12,"Dez",30,24,0.8,null,"Dez",3]
[null,null,null,null,null,null,null,null,null,null,null,null,null,null,null,null,null,null,null,null,null,null,null,null,null,null,null,null,null,null,null,null,null,null,null,null,null,null,null,13,"Perna",0,"",{"$f":"IFERROR(IF(COUNTIF($AQ$3:AQ15,AQ16)>0,AQ16+COUNTIF($AQ$3:AQ15,AQ16),AQ16),\"\")","v":""},""]
[null,null,null,null,null,null,null,null,null,null,null,null,null,null,null,null,null,null,null,null,null,null,null,null,null,null,null,null,null,null,null,null,null,null,null,null,null,null,null,14,"Pé",0,"",{"$f":"IFERROR(IF(COUNTIF($AQ$3:AQ16,AQ17)>0,AQ17+COUNTIF($AQ$3:AQ16,AQ17),AQ17),\"\")","v":""},""]
[null,null,null,null,null,null,null,null,null,null,null,null,null,null,null,null,null,null,null,null,null,null,null,null,null,null,null,null,null,null,null,null,null,null,null,null,null,null,null,15,"Dedos Pé",0,"",{"$f":"IFERROR(IF(COUNTIF($AQ$3:AQ17,AQ18)>0,AQ18+COUNTIF($AQ$3:AQ17,AQ18),AQ18),\"\")","v":""},""]
[null,null,null,null,null,null,null,null,null,null,null,null,null,null,null,null,null,null,null,null,null,null,null,null,null,null,null,null,null,null,null,null,null,null,null,null,null,null,null,16,"Orgãos internos",1,2,{"$f":"IFERROR(IF(COUNTIF($AQ$3:AQ18,AQ19)>0,AQ19+COUNTIF($AQ$3:AQ18,AQ19),AQ19),\"\")","v":4},4]
[null,null,null,null,null,null,null,null,null,null,null,null,null,null,null,null,null,null,null,null,null,null,null,null,null,null,null,null,null,null,null,null,null,null,null,null,null,null,null,17,"Joelho",3,1,{"$f":"IFERROR(IF(COUNTIF($AQ$3:AQ19,AQ20)>0,AQ20+COUNTIF($AQ$3:AQ19,AQ20),AQ20),\"\")","v":1},1]
[null,null,null,null,null,null,null,null,null,null,null,null,null,null,null,null,null,null,null,null,null,null,null,null,null,null,null,null,null,null,null,null,null,null,null,null,null,null,null,18,"","","",{"$f":"IFERROR(IF(COUNTIF($AQ$3:AQ20,AQ21)>0,AQ21+COUNTIF($AQ$3:AQ20,AQ21),AQ21),\"\")","v":""},""]
[null,null,null,null,null,null,null,null,null,null,null,null,null,null,null,null,null,null,null,null,null,null,null,null,null,null,null,null,null,null,null,null,null,null,null,null,null,null,null,19,"","","",{"$f":"IFERROR(IF(COUNTIF($AQ$3:AQ21,AQ22)>0,AQ22+COUNTIF($AQ$3:AQ21,AQ22),AQ22),\"\")","v":""},""]
[null,null,null,null,null,null,null,null,null,null,null,null,null,null,null,null,null,null,null,null,null,null,null,null,null,null,null,null,null,null,null,null,null,null,null,null,null,null,null,20,"","","",{"$f":"IFERROR(IF(COUNTIF($AQ$3:AQ22,AQ23)>0,AQ23+COUNTIF($AQ$3:AQ22,AQ23),AQ23),\"\")","v":""},""]
[null,null,null,null,null,null,null,null,null,null,null,null,null,null,null,null,null,null,null,null,null,null,null,null,null,null,null,null,null,null,null,null,null,null,null,null,null,null,null,21,"","","",{"$f":"IFERROR(IF(COUNTIF($AQ$3:AQ23,AQ24)>0,AQ24+COUNTIF($AQ$3:AQ23,AQ24),AQ24),\"\")","v":""},""]
[null,null,null,null,null,null,null,null,null,null,null,null,null,null,null,null,null,null,null,null,null,null,null,null,null,null,null,null,null,null,null,null,null,null,null,null,null,null,null,22,"","","",{"$f":"IFERROR(IF(COUNTIF($AQ$3:AQ24,AQ25)>0,AQ25+COUNTIF($AQ$3:AQ24,AQ25),AQ25),\"\")","v":""},""]
[null,null,null,null,null,null,null,null,null,null,null,null,null,null,null,null,null,null,null,null,null,null,null,null,null,null,null,null,null,null,null,null,null,null,null,null,null,null,null,23,"","","",{"$f":"IFERROR(IF(COUNTIF($AQ$3:AQ25,AQ26)>0,AQ26+COUNTIF($AQ$3:AQ25,AQ26),AQ26),\"\")","v":""},""]
[null,null,null,null,null,null,null,null,null,null,null,null,null,null,null,null,null,null,null,null,null,null,null,null,null,null,null,null,null,null,null,null,null,null,null,null,null,null,null,24,"","","",{"$f":"IFERROR(IF(COUNTIF($AQ$3:AQ26,AQ27)>0,AQ27+COUNTIF($AQ$3:AQ26,AQ27),AQ27),\"\")","v":""},""]
[null,null,null,null,null,null,null,null,null,null,null,null,null,null,null,null,null,null,null,null,null,null,null,null,null,null,null,null,null,null,null,null,null,null,null,null,null,null,null,25,"","","",{"$f":"IFERROR(IF(COUNTIF($AQ$3:AQ27,AQ28)>0,AQ28+COUNTIF($AQ$3:AQ27,AQ28),AQ28),\"\")","v":""},""]
[null,null,null,null,null,null,null,null,null,null,null,null,null,null,null,null,null,null,null,null,null,null,null,null,null,null,null,null,null,null,null,null,null,null,null,null,null,null,null,26,"","","",{"$f":"IFERROR(IF(COUNTIF($AQ$3:AQ28,AQ29)>0,AQ29+COUNTIF($AQ$3:AQ28,AQ29),AQ29),\"\")","v":""},""]
[null,null,null,null,null,null,null,null,null,null,null,null,null,null,null,null,null,null,null,null,null,null,null,null,null,null,null,null,null,null,null,null,null,null,null,null,null,null,null,27,"","","",{"$f":"IFERROR(IF(COUNTIF($AQ$3:AQ29,AQ30)>0,AQ30+COUNTIF($AQ$3:AQ29,AQ30),AQ30),\"\")","v":""},""]
[null,null,null,null,null,null,null,null,null,null,null,null,null,null,null,null,null,null,null,null,null,null,null,null,null,null,null,null,null,null,null,null,null,null,null,null,null,null,null,28,"","","",{"$f":"IFERROR(IF(COUNTIF($AQ$3:AQ30,AQ31)>0,AQ31+COUNTIF($AQ$3:AQ30,AQ31),AQ31),\"\")","v":""},""]
[null,null,null,null,null,null,null,null,null,null,null,null,null,null,null,null,null,null,null,null,null,null,null,null,null,null,null,null,null,null,null,null,null,null,null,null,null,null,null,29,"","","",{"$f":"IFERROR(IF(COUNTIF($AQ$3:AQ31,AQ32)>0,AQ32+COUNTIF($AQ$3:AQ31,AQ32),AQ32),\"\")","v":""},""]
[null,null,null,null,null,null,null,null,null,null,null,null,null,null,null,null,null,null,null,null,null,null,null,null,null,null,null,null,null,null,null,null,null,null,null,null,null,null,null,30,"","","",{"$f":"IFERROR(IF(COUNTIF($AQ$3:AQ32,AQ33)>0,AQ33+COUNTIF($AQ$3:AQ32,AQ33),AQ33),\"\")","v":""},""]
[null,null,null,null,null,null,null,null,null,null,null,null,null,null,null,null,null,null,null,null,null,null,null,null,null,null,null,null,null,null,null,null,null,null,null,null,null,null,null,31,"","","",{"$f":"IFERROR(IF(COUNTIF($AQ$3:AQ33,AQ34)>0,AQ34+COUNTIF($AQ$3:AQ33,AQ34),AQ34),\"\")","v":""},""]
[null,null,null,null,null,null,null,null,null,null,null,null,null,null,null,null,null,null,null,null,null,null,null,null,null,null,null,null,null,null,null,null,null,null,null,null,null,null,null,32,"","","",{"$f":"IFERROR(IF(COUNTIF($AQ$3:AQ34,AQ35)>0,AQ35+COUNTIF($AQ$3:AQ34,AQ35),AQ35),\"\")","v":""},""]
[null,null,null,null,null,null,null,null,null,null,null,null,null,null,null,null,null,null,null,null,null,null,null,null,null,null,null,null,null,null,null,null,null,null,null,null,null,null,null,33,{"$f":"IFERROR(INDEX(Lista_PartesCorpo,AN36,1),\"\")","v":""},"","",{"$f":"IFERROR(IF(COUNTIF($AQ$3:AQ35,AQ36)>0,AQ36+COUNTIF($AQ$3:AQ35,AQ36),AQ36),\"\")","v":""},""]
[null,null,null,null,null,null,null,null,null,null,null,null,null,null,null,null,null,null,null,null,null,null,null,null,null,null,null,null,null,null,null,null,null,null,null,null,null,null,null,34,"","","",{"$f":"IFERROR(IF(COUNTIF($AQ$3:AQ36,AQ37)>0,AQ37+COUNTIF($AQ$3:AQ36,AQ37),AQ37),\"\")","v":""},""]
[null,null,null,null,null,null,null,null,null,null,null,null,null,null,null,null,null,null,null,null,null,null,null,null,null,null,null,null,null,null,null,null,null,null,null,null,null,null,null,35,"","","",{"$f":"IFERROR(IF(COUNTIF($AQ$3:AQ37,AQ38)>0,AQ38+COUNTIF($AQ$3:AQ37,AQ38),AQ38),\"\")","v":""},""]
[null,null,null,null,null,null,null,null,null,null,null,null,null,null,null,null,null,null,null,null,null,null,null,null,null,null,null,null,null,null,null,null,null,null,null,null,null,null,null,36,"","","",{"$f":"IFERROR(IF(COUNTIF($AQ$3:AQ38,AQ39)>0,AQ39+COUNTIF($AQ$3:AQ38,AQ39),AQ39),\"\")","v":""},""]
[null,null,null,null,null,null,null,null,null,null,null,null,null,null,null,null,null,null,null,null,null,null,null,null,null,null,null,null,null,null,null,null,null,null,null,null,null,null,null,37,"","","",{"$f":"IFERROR(IF(COUNTIF($AQ$3:AQ39,AQ40)>0,AQ40+COUNTIF($AQ$3:AQ39,AQ40),AQ40),\"\")","v":""},""]
[null,null,null,null,null,null,null,null,null,null,null,null,null,null,null,null,null,null,null,null,null,null,null,null,null,null,null,null,null,null,null,null,null,null,null,null,null,null,null,38,"","","",{"$f":"IFERROR(IF(COUNTIF($AQ$3:AQ40,AQ41)>0,AQ41+COUNTIF($AQ$3:AQ40,AQ41),AQ41),\"\")","v":""},""]
[null,null,null,null,null,null,null,null,null,null,null,null,null,null,null,null,null,null,null,null,null,null,null,null,null,null,null,null,null,null,null,null,null,null,null,null,null,null,null,39,"","","",{"$f":"IFERROR(IF(COUNTIF($AQ$3:AQ41,AQ42)>0,AQ42+COUNTIF($AQ$3:AQ41,AQ42),AQ42),\"\")","v":""},""]
[null,null,null,null,null,null,null,null,null,null,null,null,null,null,null,null,null,null,null,null,null,null,null,null,null,null,null,null,null,null,null,null,null,null,null,null,null,null,null,40,"","","",{"$f":"IFERROR(IF(COUNTIF($AQ$3:AQ42,AQ43)>0,AQ43+COUNTIF($AQ$3:AQ42,AQ43),AQ43),\"\")","v":""},""]
[null,null,null,null,null,null,null,null,null,null,null,null,null,null,null,null,null,null,null,null,null,null,null,null,null,null,null,null,null,null,null,null,null,null,null,null,null,null,null,41,"","","",{"$f":"IFERROR(IF(COUNTIF($AQ$3:AQ43,AQ44)>0,AQ44+COUNTIF($AQ$3:AQ43,AQ44),AQ44),\"\")","v":""},""]
[null,null,null,null,null,null,null,null,null,null,null,null,null,null,null,null,null,null,null,null,null,null,null,null,null,null,null,null,null,null,null,null,null,null,null,null,null,null,null,42,"","","",{"$f":"IFERROR(IF(COUNTIF($AQ$3:AQ44,AQ45)>0,AQ45+COUNTIF($AQ$3:AQ44,AQ45),AQ45),\"\")","v":""},""]
[null,null,null,null,null,null,null,null,null,null,null,null,null,null,null,null,null,null,null,null,null,null,null,null,null,null,null,null,null,null,null,null,null,null,null,null,null,null,null,43,"","","",{"$f":"IFERROR(IF(COUNTIF($AQ$3:AQ45,AQ46)>0,AQ46+COUNTIF($AQ$3:AQ45,AQ46),AQ46),\"\")","v":""},""]
[null,null,null,null,null,null,null,null,null,null,null,null,null,null,null,null,null,null,null,null,null,null,null,null,null,null,null,null,null,null,null,null,null,null,null,null,null,null,null,44,"","","",{"$f":"IFERROR(IF(COUNTIF($AQ$3:AQ46,AQ47)>0,AQ47+COUNTIF($AQ$3:AQ46,AQ47),AQ47),\"\")","v":""},""]
[null,null,null,null,null,null,null,null,null,null,null,null,null,null,null,null,null,null,null,null,null,null,null,null,null,null,null,null,null,null,null,null,null,null,null,null,null,null,null,45,"","","",{"$f":"IFERROR(IF(COUNTIF($AQ$3:AQ47,AQ48)>0,AQ48+COUNTIF($AQ$3:AQ47,AQ48),AQ48),\"\")","v":""},""]
[null,null,null,null,null,null,null,null,null,null,null,null,null,null,null,null,null,null,null,null,null,null,null,null,null,null,null,null,null,null,null,null,null,null,null,null,null,null,null,46,"","","",{"$f":"IFERROR(IF(COUNTIF($AQ$3:AQ48,AQ49)>0,AQ49+COUNTIF($AQ$3:AQ48,AQ49),AQ49),\"\")","v":""},""]
[null,null,null,null,null,null,null,null,null,null,null,null,null,null,null,null,null,null,null,null,null,null,null,null,null,null,null,null,null,null,null,null,null,null,null,null,null,null,null,47,"","","",{"$f":"IFERROR(IF(COUNTIF($AQ$3:AQ49,AQ50)>0,AQ50+COUNTIF($AQ$3:AQ49,AQ50),AQ50),\"\")","v":""},""]
[null,null,null,null,null,null,null,null,null,null,null,null,null,null,null,null,null,null,null,null,null,null,null,null,null,null,null,null,null,null,null,null,null,null,null,null,null,null,null,48,"","","",{"$f":"IFERROR(IF(COUNTIF($AQ$3:AQ50,AQ51)>0,AQ51+COUNTIF($AQ$3:AQ50,AQ51),AQ51),\"\")","v":""},""]
[null,null,null,null,null,null,null,null,null,null,null,null,null,null,null,null,null,null,null,null,null,null,null,null,null,null,null,null,null,null,null,null,null,null,null,null,null,null,null,49,"","","",{"$f":"IFERROR(IF(COUNTIF($AQ$3:AQ51,AQ52)>0,AQ52+COUNTIF($AQ$3:AQ51,AQ52),AQ52),\"\")","v":""},""]
[null,null,null,null,null,null,null,null,null,null,null,null,null,null,null,null,null,null,null,null,null,null,null,null,null,null,null,null,null,null,null,null,null,null,null,null,null,null,null,50,"","","",{"$f":"IFERROR(IF(COUNTIF($AQ$3:AQ52,AQ53)>0,AQ53+COUNTIF($AQ$3:AQ52,AQ53),AQ53),\"\")","v":""},""]